bitfinex/quotes_BTCUSD_20250408
["timestamp","ask_amount","ask_price","bid_price","bid_amount"]
[1744103286557,0.0003364,79184.0,79183.0,0.77337979]
[1744103286882,0.0003364,79184.0,79183.0,0.78792064]
[1744103288453,0.002,79199.0,79198.0,0.312257]
[1744103288777,0.00212631,79199.0,79198.0,0.20107913]
[1744103289215,0.00212631,79199.0,79198.0,0.15397913]
[1744103289330,0.26728031,79199.0,79198.0,0.12625864]
[1744103289543,0.00899058,79199.0,79198.0,0.12625864]
[1744103289955,0.00899058,79199.0,79198.0,0.14976168]
[1744103290555,0.00899058,79199.0,79198.0,0.15676168]
[1744103292304,0.02161658,79199.0,79198.0,0.15676168]
[1744103292500,0.36161658,79199.0,79198.0,0.15676168]
[1744103293316,0.36161658,79199.0,79198.0,0.03050304]
[1744103293722,0.36161658,79199.0,79198.0,0.007]
[1744103294560,0.36161658,79199.0,79198.0,0.004]
[1744103294796,0.36161658,79199.0,79198.0,0.13025864]
[1744103295032,0.36161658,79199.0,79198.0,0.12625864]
[1744103295308,0.00899058,79199.0,79198.0,0.1402845]
[1744103296093,0.00899058,79199.0,79198.0,0.1529105]
[1744103296535,0.00899058,79199.0,79198.0,0.16133656]
[1744103296536,0.00212631,79199.0,79198.0,0.16133656]
[1744103296837,0.00212631,79199.0,79198.0,0.17611401]
[1744103297138,0.00212631,79199.0,79198.0,0.17511401]
[1744103297343,0.00212631,79199.0,79198.0,0.16248801]
[1744103297551,0.00212631,79199.0,79198.0,0.16648801]
[1744103297956,0.00212631,79199.0,79198.0,0.19261391]
[1744103298161,0.00212631,79199.0,79198.0,0.20323991]
[1744103298302,0.00212631,79199.0,79198.0,0.20071493]
[1744103298504,0.00212631,79199.0,79198.0,0.68288072]
[1744103298698,0.00212631,79199.0,79198.0,0.68035578]
[1744103299582,0.00212631,79199.0,79198.0,0.67635578]
[1744103299786,0.0003358,79209.0,79208.0,0.060324]
[1744103300080,0.00075658,79209.0,79208.0,0.52328165]
[1744103300239,0.00075658,79209.0,79208.0,0.5301834]
[1744103300657,0.0003364,79212.0,79211.0,0.265114]
[1744103300840,0.0003364,79216.0,79213.0,0.02716485]
[1744103301070,0.0004473,79214.0,79213.0,0.20364723]
[1744103301271,0.0004473,79214.0,79213.0,0.3468473]
[1744103301469,0.0004473,79214.0,79213.0,0.34432356]
[1744103301909,0.0004473,79214.0,79213.0,0.36792448]
[1744103302320,0.0004473,79214.0,79213.0,0.62040748]
[1744103302970,0.0004473,79214.0,79213.0,0.60586663]
[1744103304411,0.0004473,79214.0,79213.0,0.34075963]
[1744103304550,0.0004473,79214.0,79213.0,0.29305963]
[1744103304745,0.00758664,79214.0,79213.0,0.29305963]
[1744103304950,0.0004473,79214.0,79213.0,0.29305963]
[1744103305670,0.27269064,79214.0,79213.0,0.28363357]
[1744103305890,0.2655513,79214.0,79213.0,0.16163701]
[1744103306236,0.27269064,79214.0,79213.0,0.14985956]
[1744103306668,0.27769064,79214.0,79213.0,0.15085956]
[1744103306872,0.27269064,79214.0,79213.0,0.14985956]
[1744103307199,0.27269064,79214.0,79213.0,0.03160092]
[1744103307200,0.70729064,79214.0,79213.0,0.03160092]
[1744103307459,0.70729064,79214.0,79213.0,0.02360092]
[1744103307652,0.70729064,79214.0,79186.0,0.00939532]
[1744103307653,0.265151,79200.0,79186.0,0.02114369]
[1744103307893,0.265151,79200.0,79199.0,0.25009495]
[1744103308077,0.27213036,79200.0,79199.0,0.25009495]
[1744103308612,0.00697936,79200.0,79199.0,0.25009495]
[1744103308960,0.27213036,79200.0,79199.0,0.25009495]
[1744103309169,0.27213036,79200.0,79199.0,0.13751649]
[1744103309396,0.61213036,79200.0,79199.0,0.12625864]
[1744103309602,0.012629,79182.0,79181.0,0.11257846]
[1744103309776,0.265204,79184.0,79181.0,0.2388371]
[1744103309974,0.27214175,79183.0,79182.0,0.12625864]
[1744103310368,0.00693475,79183.0,79182.0,0.12625864]
[1744103310587,0.265173,79194.0,79182.0,0.41535135]
[1744103310788,0.00693213,79188.0,79187.0,0.12625864]
[1744103311636,0.35943447,79188.0,79187.0,0.12625864]
[1744103311997,0.35943447,79188.0,79187.0,0.12925864]
[1744103312588,0.37187689,79188.0,79187.0,0.12925864]
[1744103313037,0.37187689,79188.0,79187.0,0.13425864]
[1744103314036,0.37187689,79188.0,79187.0,0.14772658]
[1744103314916,0.35924889,79188.0,79187.0,0.14772658]
[1744103315141,0.37187689,79188.0,79187.0,0.14772658]
[1744103316597,0.37187689,79188.0,79187.0,0.13425864]
[1744103325175,0.01924889,79188.0,79187.0,0.13425864]
[1744103325580,0.34,79196.0,79187.0,0.13425864]
[1744103325720,0.592539,79196.0,79187.0,0.13425864]
[1744103325923,0.00678104,79195.0,79187.0,0.13425864]
[1744103326174,0.00678104,79195.0,79188.0,0.07143864]
[1744103326391,0.00678104,79195.0,79189.0,0.12625864]
[1744103326593,0.00678104,79195.0,79194.0,0.13888564]
[1744103326942,0.34,79204.0,79195.0,0.265168]
[1744103327283,0.00676011,79203.0,79197.0,0.12625864]
[1744103327426,0.00676011,79203.0,79198.0,0.06692256]
[1744103327646,0.00676011,79203.0,79202.0,0.39140164]
[1744103327849,0.00676011,79203.0,79202.0,0.12625864]
[1744103328076,0.012624,79210.0,79202.0,0.12625864]
[1744103328274,0.012624,79209.0,79205.0,0.12625864]
[1744103328603,0.01945171,79209.0,79206.0,0.03914076]
[1744103328834,0.01945171,79209.0,79207.0,0.12625864]
[1744103328835,0.605126,79208.0,79207.0,0.12625864]
[1744103329202,0.61195027,79208.0,79207.0,0.12625864]
[1744103329567,0.61195027,79208.0,79183.0,0.4609]
[1744103329568,0.252533,79198.0,79187.0,0.02346244]
[1744103329788,0.252533,79198.0,79189.0,0.12625864]
[1744103329789,0.012627,79193.0,79189.0,0.12625864]
[1744103329992,0.012627,79193.0,79190.0,0.04646429]
[1744103330214,0.012627,79193.0,79187.0,0.02388322]
[1744103330215,0.265184,79190.0,79187.0,0.02388322]
[1744103330551,0.012628,79188.0,79187.0,0.02388322]
[1744103330725,0.012628,79188.0,79187.0,0.15014186]
[1744103330951,0.00680701,79188.0,79187.0,0.15014186]
[1744103331073,0.00680701,79188.0,79187.0,0.40270786]
[1744103331274,0.34,79194.0,79193.0,0.012627]
[1744103331470,0.0099868,79197.0,79196.0,0.012626]
[1744103331697,0.0099868,79197.0,79196.0,0.12625864]
[1744103331898,0.34,79197.0,79196.0,0.12625864]
[1744103332117,0.00678608,79197.0,79196.0,0.1388845]
[1744103333056,0.352626,79197.0,79196.0,0.1428845]
[1744103333430,0.35940946,79197.0,79196.0,0.1468845]
[1744103334563,0.34678346,79197.0,79196.0,0.1468845]
[1744103334789,0.35940946,79197.0,79196.0,0.1468845]
[1744103336224,0.35940946,79197.0,79196.0,0.17045722]
[1744103337481,0.35940946,79197.0,79196.0,0.15783136]
[1744103340816,0.35940946,79197.0,79196.0,0.13425864]
[1744103342674,0.34678346,79197.0,79196.0,0.13425864]
[1744103342871,0.00678346,79197.0,79196.0,0.13425864]
[1744103343170,0.00678346,79197.0,79196.0,0.44612264]
[1744103343371,0.02522951,79208.0,79200.0,0.252522]
[1744103343570,0.34,79207.0,79203.0,0.12625864]
[1744103343771,0.60513,79207.0,79206.0,0.12625864]
[1744103344124,0.265111,79212.0,79206.0,0.12625864]
[1744103344125,0.0099086,79210.0,79206.0,0.12625864]
[1744103344316,0.265126,79208.0,79207.0,0.12625864]
[1744103345249,0.265126,79208.0,79207.0,0.14984953]
[1744103345944,0.605126,79208.0,79207.0,0.15284953]
[1744103346279,0.605126,79208.0,79207.0,0.02659089]
[1744103346480,0.605126,79208.0,79207.0,0.02959089]
[1744103347188,0.605126,79208.0,79207.0,0.02659089]
[1744103347742,0.605126,79208.0,79207.0,0.003]
[1744103347954,0.26518,79191.0,79190.0,0.01179834]
[1744103348156,0.26518,79191.0,79190.0,0.13805698]
[1744103348366,0.26518,79191.0,79190.0,0.15381279]
[1744103349322,0.26518,79191.0,79190.0,0.14401445]
[1744103349601,0.60518,79191.0,79190.0,0.13125864]
[1744103349820,0.60518,79191.0,79190.0,0.1548623]
[1744103350798,0.34,79191.0,79190.0,0.1548623]
[1744103351039,0.0098937,79198.0,79193.0,0.012627]
[1744103351268,0.0098937,79198.0,79196.0,0.12625864]
[1744103351482,0.605154,79200.0,79196.0,0.12625864]
[1744103351711,0.59931286,79197.0,79196.0,0.12625864]
[1744103352000,0.34677886,79197.0,79196.0,0.12625864]
[1744103352369,0.35940486,79197.0,79196.0,0.12625864]
[1744103352570,0.35940486,79197.0,79196.0,0.14921971]
[1744103352795,0.35940486,79197.0,79196.0,0.15021971]
[1744103353197,0.35940486,79197.0,79196.0,0.14921971]
[1744103353382,0.35940486,79197.0,79196.0,0.17479173]
[1744103353789,0.00677886,79197.0,79196.0,0.18741773]
[1744103354012,0.00677886,79197.0,79196.0,0.44248075]
[1744103354241,0.0098027,79204.0,79196.0,0.44248075]
[1744103354242,0.265126,79208.0,79201.0,0.265145]
[1744103354485,0.265126,79208.0,79207.0,0.12625864]
[1744103354693,0.605126,79208.0,79207.0,0.12625864]
[1744103355046,0.605126,79208.0,79207.0,0.14983066]
[1744103355890,0.605126,79208.0,79207.0,0.15949649]
[1744103356052,0.605126,79208.0,79207.0,0.17544614]
[1744103356673,0.61188656,79208.0,79207.0,0.17544614]
[1744103358684,0.61188656,79208.0,79207.0,0.14983066]
[1744103359706,0.61188656,79208.0,79207.0,0.15933435]
[1744103360066,0.61188656,79208.0,79207.0,0.13576233]
[1744103360444,0.00676056,79208.0,79207.0,0.13576233]
[1744103360774,0.012624,79211.0,79207.0,0.13576233]
[1744103360979,0.00686157,79208.0,79207.0,0.00950369]
[1744103361165,0.252495,79210.0,79207.0,0.12625864]
[1744103361367,0.00686157,79208.0,79207.0,0.02203293]
[1744103361568,0.2654428,79214.0,79209.0,0.0473]
[1744103361774,0.252486,79212.0,79211.0,0.12625864]
[1744103361989,0.26511,79212.0,79211.0,0.12625864]
[1744103362179,0.2719611,79212.0,79211.0,0.12625864]
[1744103364240,0.2719611,79212.0,79211.0,0.12925864]
[1744103364650,0.2719611,79212.0,79211.0,0.15580622]
[1744103364844,0.2719611,79212.0,79211.0,0.17232764]
[1744103365908,0.0068511,79212.0,79211.0,0.18495164]
[1744103366186,0.2593371,79212.0,79211.0,0.17232764]
[1744103366343,0.26511,79212.0,79211.0,0.17232764]
[1744103366693,0.26511,79212.0,79211.0,0.15580622]
[1744103366694,0.27207412,79212.0,79211.0,0.15580622]
[1744103367191,0.27207412,79212.0,79211.0,0.15280622]
[1744103367398,0.27207412,79212.0,79211.0,0.15880622]
[1744103367599,0.27207412,79212.0,79211.0,0.14980622]
[1744103367976,0.27207412,79212.0,79211.0,0.15680622]
[1744103368178,0.27207412,79212.0,79211.0,0.17342764]
[1744103368400,0.27207412,79212.0,79211.0,0.16742764]
[1744103374337,0.00696412,79212.0,79211.0,0.46891764]
[1744103374545,0.00696412,79212.0,79211.0,0.21642764]
[1744103374747,0.3403358,79214.0,79211.0,0.21642764]
[1744103374952,0.3403358,79214.0,79213.0,0.12625864]
[1744103375267,0.3529598,79214.0,79213.0,0.12625864]
[1744103376202,0.3529598,79214.0,79213.0,0.15280622]
[1744103377180,0.3529598,79214.0,79213.0,0.15680622]
[1744103378581,0.3403358,79214.0,79213.0,0.15680622]
[1744103378781,0.3529598,79214.0,79213.0,0.20498302]
[1744103379226,0.3529598,79214.0,79213.0,0.15680622]
[1744103381462,0.3529598,79214.0,79213.0,0.16859077]
[1744103384485,0.3529598,79214.0,79213.0,0.1780236]
[1744103384688,0.0003358,79214.0,79213.0,0.1780236]
[1744103384909,0.0003358,79214.0,79213.0,0.2388476]
[1744103385073,0.0003358,79214.0,79213.0,0.36678159]
[1744103385277,0.0003358,79214.0,79213.0,0.3642571]
[1744103385673,0.0003358,79214.0,79213.0,0.3612571]
[1744103386401,0.0003358,79214.0,79213.0,0.3662571]
[1744103386729,0.0003358,79214.0,79213.0,0.3612571]
[1744103387113,0.0003358,79214.0,79213.0,0.3702571]
[1744103387691,0.0003358,79214.0,79213.0,0.3662571]
[1744103387900,0.0003358,79214.0,79213.0,0.3752571]
[1744103389902,0.00718263,79214.0,79213.0,0.3752571]
[1744103391140,0.0003358,79214.0,79213.0,0.3752571]
[1744103392590,0.00717508,79214.0,79213.0,0.3626331]
[1744103393153,0.00717508,79214.0,79213.0,0.3752571]
[1744103393361,0.0003358,79214.0,79213.0,0.3752571]
[1744103393769,0.00717657,79214.0,79213.0,0.3752571]
[1744103393974,0.0003358,79214.0,79213.0,0.3752571]
[1744103394397,0.00717657,79214.0,79213.0,0.3752571]
[1744103394601,0.0003358,79214.0,79213.0,0.3752571]
[1744103394914,0.0071783,79214.0,79213.0,0.3752571]
[1744103395594,0.0003358,79214.0,79213.0,0.3752571]
[1744103396907,0.0003358,79214.0,79213.0,0.80419795]
[1744103397275,0.0003358,79214.0,79213.0,0.79519795]
[1744103397709,0.0003358,79214.0,79213.0,0.80419795]
[1744103398043,0.0003358,79214.0,79213.0,0.7806571]
[1744103399683,0.0003358,79214.0,79213.0,0.7716571]
[1744103399859,0.0003358,79214.0,79213.0,0.7726571]
[1744103400460,0.0003358,79214.0,79213.0,0.78719795]
[1744103402634,0.0003358,79214.0,79213.0,0.7726571]
[1744103403161,0.0003358,79214.0,79213.0,0.7118331]
[1744103403386,0.0003358,79214.0,79213.0,0.7244571]
[1744103404098,0.0003358,79214.0,79213.0,0.73799795]
[1744103404296,0.0003358,79214.0,79213.0,0.79519795]
[1744103404501,0.0003358,79214.0,79213.0,0.80419795]
[1744103404723,0.0003358,79214.0,79213.0,0.78619795]
[1744103405297,6e-07,79232.0,79231.0,0.07376185]
[1744103405474,6e-07,79232.0,79231.0,0.64834115]
[1744103405626,0.00012678,79232.0,79231.0,0.7083257]
[1744103405830,0.000168,79245.0,79235.0,0.05922]
[1744103406038,2e-07,79236.0,79235.0,0.94994962]
[1744103406267,2e-07,79236.0,79235.0,0.98042438]
[1744103406665,0.000168,79245.0,79237.0,0.07376085]
[1744103406867,0.000168,79245.0,79237.0,0.2025426]
[1744103407040,0.000168,79245.0,79237.0,0.20001949]
[1744103407246,0.000168,79245.0,79237.0,0.29782132]
[1744103408415,0.000168,79245.0,79237.0,0.30960587]
[1744103409252,0.000168,79245.0,79237.0,0.31060587]
[1744103409481,0.0041678,79238.0,79237.0,0.56301287]
[1744103410011,0.0041678,79238.0,79237.0,0.97741287]
[1744103410217,0.0001678,79238.0,79237.0,0.97741287]
[1744103410660,0.0051678,79238.0,79237.0,0.97641287]
[1744103414815,0.000168,79245.0,79244.0,0.37434485]
[1744103414816,1e-06,79245.0,79244.0,0.37434485]
[1744103414968,1e-07,79246.0,79245.0,0.07325985]
[1744103415169,1e-07,79246.0,79245.0,0.22558888]
[1744103415375,1e-07,79246.0,79245.0,0.2324989]
[1744103415579,1e-07,79246.0,79245.0,0.24428345]
[1744103417367,0.0020001,79246.0,79245.0,0.24428345]
[1744103417567,0.0020001,79246.0,79245.0,0.26977128]
[1744103417874,9e-07,79247.0,79246.0,0.27953685]
[1744103418075,9e-07,79247.0,79246.0,0.45189549]
[1744103418198,9e-07,79247.0,79246.0,0.46132832]
[1744103418396,7e-07,79249.0,79248.0,0.68823085]
[1744103418600,0.002,79259.0,79258.0,0.311057]
[1744103418808,0.00212614,79259.0,79258.0,0.46128932]
[1744103419018,0.00212614,79259.0,79258.0,0.47307387]
[1744103419219,0.00212614,79259.0,79258.0,0.49662145]
[1744103419413,0.00212614,79259.0,79258.0,0.51324287]
[1744103421230,0.00312614,79259.0,79258.0,0.51324287]
[1744103421401,0.00512614,79259.0,79258.0,0.51324287]
[1744103421811,0.00512614,79259.0,79258.0,0.92764287]
[1744103422011,0.00512614,79259.0,79258.0,0.93714642]
[1744103423394,0.00412614,79259.0,79258.0,0.93714642]
[1744103423764,0.00512614,79259.0,79258.0,0.93714642]
[1744103423978,0.00312614,79259.0,79258.0,0.93714642]
[1744103424218,0.00412614,79259.0,79258.0,0.93714642]
[1744103424422,0.00412614,79259.0,79258.0,0.98584642]
[1744103426294,0.00412614,79259.0,79258.0,0.93714642]
[1744103426497,0.00412614,79259.0,79258.0,0.19714857]
[1744103426670,0.26907914,79259.0,79258.0,0.19714857]
[1744103427014,0.27526504,79259.0,79258.0,0.18771574]
[1744103427468,0.01031204,79259.0,79258.0,0.18771574]
[1744103427701,0.00931204,79259.0,79258.0,0.17593119]
[1744103427853,0.00312614,79259.0,79258.0,0.44788819]
[1744103428225,0.00212614,79259.0,79258.0,0.44788819]
[1744103428430,0.00212614,79259.0,79258.0,0.45288819]
[1744103428639,0.00828125,79259.0,79258.0,0.45288819]
[1744103428815,0.00828125,79259.0,79258.0,0.18793119]
[1744103428975,0.00828125,79259.0,79258.0,0.21233274]
[1744103429177,0.00212614,79259.0,79258.0,0.21233274]
[1744103429394,0.00212614,79259.0,79258.0,0.19971574]
[1744103429763,0.00212614,79259.0,79258.0,0.46467274]
[1744103431389,0.00212614,79259.0,79258.0,0.47403854]
[1744103432794,0.00212614,79259.0,79258.0,0.20908154]
[1744103432912,0.25446314,79259.0,79258.0,0.20908154]
[1744103433114,0.0148042,79259.0,79258.0,0.19971574]
[1744103433310,0.2797572,79259.0,79258.0,0.19971574]
[1744103433579,0.0148042,79259.0,79258.0,0.19971574]
[1744103433748,0.0148042,79259.0,79258.0,0.21233274]
[1744103433956,0.00212614,79259.0,79258.0,0.22169854]
[1744103434690,0.00212614,79259.0,79258.0,0.20908154]
[1744103434691,0.0148042,79259.0,79258.0,0.20908154]
[1744103434835,0.01474214,79259.0,79258.0,0.20908154]
[1744103435031,0.0274202,79259.0,79258.0,0.20908154]
[1744103435252,0.4136202,79259.0,79258.0,0.18295657]
[1744103435652,0.4136202,79259.0,79258.0,0.17359077]
[1744103436254,0.0148042,79259.0,79258.0,0.17359077]
[1744103436464,0.0148042,79259.0,79258.0,0.16659077]
[1744103436675,0.0148042,79259.0,79258.0,0.19932683]
[1744103436882,0.0148042,79259.0,79258.0,0.44766683]
[1744103437200,0.0148042,79259.0,79258.0,0.44341563]
[1744103437201,0.00412614,79259.0,79258.0,0.44341563]
[1744103437422,0.01678407,79259.0,79258.0,0.45703263]
[1744103437624,0.01478407,79259.0,79258.0,0.45603263]
[1744103437831,0.00212614,79259.0,79258.0,0.45603263]
[1744103438076,0.00312614,79259.0,79258.0,0.87843263]
[1744103438361,0.00212614,79259.0,79258.0,0.87043263]
[1744103438560,0.00212614,79259.0,79258.0,0.87543263]
[1744103439892,0.00212614,79259.0,79258.0,0.87043263]
[1744103440050,0.00312614,79259.0,79258.0,0.87943263]
[1744103440270,0.00212614,79259.0,79258.0,0.87943263]
[1744103440678,0.00312614,79259.0,79258.0,0.87581563]
[1744103440877,0.00312614,79259.0,79258.0,0.88843263]
[1744103445287,0.00312614,79259.0,79258.0,0.62347563]
[1744103445721,0.0157922,79259.0,79258.0,0.62347563]
[1744103445923,0.00312614,79259.0,79258.0,0.62347563]
[1744103446124,0.01579918,79259.0,79258.0,0.62347563]
[1744103446297,0.00312614,79259.0,79258.0,0.62347563]
[1744103446938,0.01580171,79259.0,79258.0,0.62347563]
[1744103447143,0.01580171,79259.0,79258.0,0.63609263]
[1744103447364,0.00312614,79259.0,79258.0,0.63609263]
[1744103447888,0.01580425,79259.0,79258.0,0.63609263]
[1744103448051,0.00312614,79259.0,79258.0,0.63609263]
[1744103448257,0.01580425,79259.0,79258.0,0.63609263]
[1744103448488,0.00312614,79259.0,79258.0,0.63609263]
[1744103448727,0.01580425,79259.0,79258.0,0.63609263]
[1744103449043,0.01580425,79259.0,79258.0,0.62347563]
[1744103449820,0.01580425,79259.0,79258.0,0.63609263]
[1744103450586,0.00312614,79259.0,79258.0,0.63609263]
[1744103450990,0.01580425,79259.0,79258.0,0.63609263]
[1744103451192,0.00312614,79259.0,79258.0,0.63609263]
[1744103451391,0.00312614,79259.0,79258.0,0.68239263]
[1744103451811,0.00312614,79259.0,79258.0,0.69693348]
[1744103452062,0.00312614,79259.0,79258.0,0.74583348]
[1744103455054,0.00312614,79259.0,79258.0,0.85820264]
[1744103455438,0.00312614,79259.0,79258.0,0.74846179]
[1744103455847,0.01581143,79259.0,79258.0,0.74846179]
[1744103456052,0.00312614,79259.0,79258.0,0.74846179]
[1744103457781,0.00312614,79259.0,79258.0,0.63609263]
[1744103458012,0.01581396,79259.0,79258.0,0.62347563]
[1744103458213,0.01581396,79259.0,79258.0,0.63609263]
[1744103458628,0.00312614,79259.0,79258.0,0.63609263]
[1744103462148,0.01582391,79259.0,79258.0,0.63609263]
[1744103462697,0.00312614,79259.0,79258.0,0.62347563]
[1744103463083,0.01582035,79259.0,79258.0,0.62347563]
[1744103463723,0.26027598,79262.0,79258.0,0.62347563]
[1744103463889,0.01057648,79259.0,79258.0,0.49721699]
[1744103464067,0.252333,79261.0,79258.0,0.62347563]
[1744103464274,0.26027598,79262.0,79260.0,0.12625864]
[1744103464529,0.26027598,79262.0,79261.0,0.12625864]
[1744103464733,0.26027598,79262.0,79261.0,0.27145626]
[1744103464934,0.26127598,79262.0,79261.0,0.27145626]
[1744103465725,0.013616,79262.0,79261.0,0.27145626]
[1744103465922,0.012616,79262.0,79261.0,0.27145626]
[1744103466098,0.012616,79262.0,79261.0,0.27845626]
[1744103466297,0.013616,79262.0,79261.0,0.27845626]
[1744103466789,0.012615,79265.0,79261.0,0.27845626]
[1744103466967,0.264935,79265.0,79264.0,0.12625864]
[1744103467200,0.264935,79265.0,79264.0,0.13804319]
[1744103467342,0.264935,79265.0,79264.0,0.14740899]
[1744103468311,0.264935,79265.0,79264.0,0.12625864]
[1744103468843,0.264935,79265.0,79264.0,0.14980622]
[1744103469049,0.264935,79265.0,79264.0,0.17592528]
[1744103469258,0.265935,79265.0,79264.0,0.19433749]
[1744103470847,0.265935,79265.0,79264.0,0.20610243]
[1744103471452,0.27648145,79265.0,79264.0,0.20610243]
[1744103472159,0.61648145,79265.0,79264.0,0.18598337]
[1744103472525,0.61648145,79265.0,79264.0,0.05031252]
[1744103472924,0.61548145,79265.0,79264.0,0.02354758]
[1744103473241,0.012618,79251.0,79250.0,0.01176494]
[1744103473425,0.012618,79251.0,79250.0,0.15148814]
[1744103473785,0.02313269,79251.0,79250.0,0.15148814]
[1744103473992,0.02313269,79251.0,79250.0,0.1397232]
[1744103475971,0.02313269,79251.0,79250.0,0.1447232]
[1744103476289,0.03681258,79251.0,79250.0,0.1527232]
[1744103476593,0.03581258,79251.0,79250.0,0.1447232]
[1744103476752,0.02319458,79251.0,79250.0,0.1497232]
[1744103477154,0.01051469,79251.0,79250.0,0.4607062]
[1744103477377,0.0098569,79258.0,79257.0,0.26496]
[1744103477559,0.25232,79265.0,79260.0,0.012616]
[1744103477754,0.34,79262.0,79258.0,0.25234]
[1744103477979,0.34,79262.0,79261.0,0.12625864]
[1744103478835,0.34,79262.0,79261.0,0.14975199]
[1744103479006,0.35242748,79262.0,79261.0,0.14975199]
[1744103479211,0.36504348,79262.0,79261.0,0.22188331]
[1744103479372,0.36504348,79262.0,79261.0,0.15175199]
[1744103479769,0.41104348,79262.0,79261.0,0.15175199]
[1744103479971,0.41104348,79262.0,79261.0,0.15675199]
[1744103480190,0.41104348,79262.0,79261.0,0.13325864]
[1744103480399,0.45954348,79262.0,79261.0,0.13325864]
[1744103480751,0.45954348,79262.0,79261.0,0.12625864]
[1744103480932,0.45954348,79262.0,79261.0,0.12825864]
[1744103481341,0.604976,79252.0,79251.0,0.02349335]
[1744103481540,0.604976,79252.0,79251.0,0.14975199]
[1744103481968,0.592394,79241.0,79240.0,0.01175176]
[1744103482219,0.592394,79241.0,79202.0,0.046]
[1744103482220,0.012623,79218.0,79202.0,0.046]
[1744103482426,0.60509,79218.0,79217.0,0.12659444]
[1744103482647,0.60509,79218.0,79217.0,0.12672062]
[1744103482870,0.60509,79218.0,79217.0,0.13962626]
[1744103483285,0.60509,79218.0,79217.0,0.12672062]
[1744103483488,0.60509,79218.0,79217.0,0.13572062]
[1744103483653,0.60509,79218.0,79217.0,0.12672062]
[1744103484094,0.60509,79218.0,79217.0,0.13572062]
[1744103484232,0.60509,79218.0,79217.0,0.12672062]
[1744103484690,0.60509,79218.0,79217.0,0.13472062]
[1744103484691,0.60609,79218.0,79217.0,0.13472062]
[1744103485068,0.60609,79218.0,79217.0,0.12672062]
[1744103485276,0.60509,79218.0,79217.0,0.12672062]
[1744103485489,0.60509,79218.0,79217.0,0.12972062]
[1744103485920,0.60509,79218.0,79217.0,0.13572062]
[1744103486134,0.60509,79218.0,79217.0,9.8e-07]
[1744103486350,0.60511,79212.0,79211.0,7.8e-07]
[1744103487501,0.60911,79212.0,79211.0,7.8e-07]
[1744103487727,0.60511,79212.0,79211.0,7.8e-07]
[1744103488539,0.61111,79212.0,79211.0,0.00100078]
[1744103489138,0.61611,79212.0,79211.0,0.00100078]
[1744103489455,0.61111,79212.0,79211.0,0.00100078]
[1744103489853,0.61611,79212.0,79211.0,0.00100078]
[1744103491860,0.62598668,79212.0,79211.0,0.00100078]
[1744103493842,0.62598668,79212.0,79211.0,0.12725942]
[1744103496338,0.02087668,79212.0,79211.0,0.15260936]
[1744103496544,0.02087668,79212.0,79211.0,0.13998536]
[1744103496753,0.011,79212.0,79211.0,0.13998536]
[1744103496945,0.0209676,79212.0,79211.0,0.13998536]
[1744103497184,0.3675916,79212.0,79211.0,0.13898536]
[1744103497383,0.3695916,79212.0,79211.0,0.13998536]
[1744103497842,0.3569676,79212.0,79211.0,0.14398536]
[1744103498007,0.3499676,79212.0,79211.0,0.14298536]
[1744103498202,0.0099676,79212.0,79211.0,0.14398536]
[1744103499201,0.0099676,79212.0,79211.0,0.45889936]
[1744103499651,0.26505,79231.0,79225.0,0.012622]
[1744103499867,0.352621,79230.0,79228.0,0.12625864]
[1744103500083,0.61519373,79230.0,79228.0,0.12625864]
[1744103500291,0.012621,79229.0,79228.0,0.12625864]
[1744103500490,0.02274907,79229.0,79228.0,0.1388845]
[1744103501138,0.02274907,79229.0,79228.0,0.1428845]
[1744103502442,0.02274907,79229.0,79228.0,0.1398845]
[1744103502648,0.02274907,79229.0,79228.0,0.1418845]
[1744103502821,0.02274907,79229.0,79228.0,0.1428845]
[1744103503204,0.01012807,79229.0,79228.0,0.1428845]
[1744103503653,0.02274907,79229.0,79228.0,0.1428845]
[1744103504781,0.01012807,79229.0,79228.0,0.1428845]
[1744103505065,0.02274907,79229.0,79228.0,0.1428845]
[1744103509974,0.36274907,79229.0,79228.0,0.1428845]
[1744103512579,0.01012807,79229.0,79228.0,0.3953205]
[1744103512866,0.00012602,79231.0,79228.0,0.3953205]
[1744103513001,0.01274702,79231.0,79229.0,0.04792855]
[1744103513200,0.26517602,79231.0,79230.0,0.12625864]
[1744103513861,0.34012602,79231.0,79230.0,0.12625864]
[1744103514070,0.35274702,79231.0,79230.0,0.12625864]
[1744103514288,0.35274702,79231.0,79230.0,0.12825864]
[1744103514462,0.35274702,79231.0,79230.0,0.17951835]
[1744103516226,0.35274702,79231.0,79230.0,0.12825864]
[1744103517905,0.34012602,79231.0,79230.0,0.15021846]
[1744103518107,0.34012602,79231.0,79230.0,0.13759746]
[1744103518388,0.00012602,79231.0,79230.0,0.56714269]
[1744103518560,0.00012602,79231.0,79230.0,0.70649287]
[1744103518764,0.00012602,79231.0,79230.0,0.84447112]
[1744103519148,0.00012602,79231.0,79230.0,0.84247112]
[1744103519350,0.00012602,79231.0,79230.0,0.82793027]
[1744103519554,0.00012602,79231.0,79230.0,0.83693027]
[1744103519767,0.00012602,79231.0,79230.0,0.83193027]
[1744103519981,0.00012602,79231.0,79230.0,0.82793027]
[1744103520180,0.00112602,79231.0,79230.0,0.84493027]
[1744103520375,0.00112602,79231.0,79230.0,0.83230927]
[1744103520620,0.00112602,79231.0,79230.0,1.09735927]
[1744103520916,0.00112602,79231.0,79230.0,0.82330927]
[1744103521113,0.00112602,79231.0,79230.0,0.83593027]
[1744103521349,0.00112602,79231.0,79230.0,0.84493027]
[1744103521526,0.00012602,79231.0,79230.0,0.83693027]
[1744103521824,0.00112602,79231.0,79230.0,0.84593027]
[1744103522830,0.00112602,79231.0,79230.0,0.86047112]
[1744103530860,0.26617302,79231.0,79230.0,0.73880927]
[1744103531076,0.01374702,79231.0,79230.0,0.61255382]
[1744103531274,0.00984966,79231.0,79230.0,0.86498282]
[1744103531478,0.00984966,79231.0,79230.0,0.87760382]
[1744103531780,0.00112602,79231.0,79230.0,0.61255382]
[1744103532059,0.00980301,79231.0,79230.0,0.6810736]
[1744103532287,0.00112602,79231.0,79230.0,0.9344008]
[1744103532432,0.00981314,79231.0,79230.0,0.9344008]
[1744103532633,0.00112602,79231.0,79230.0,0.9344008]
[1744103534385,0.00112602,79231.0,79230.0,0.94613979]
[1744103537747,0.00112602,79231.0,79230.0,0.68108979]
[1744103537944,0.01374702,79231.0,79230.0,0.68108979]
[1744103538249,0.02244806,79231.0,79230.0,0.68108979]
[1744103538591,0.02244806,79231.0,79230.0,0.18883119]
[1744103538796,0.36244806,79231.0,79230.0,0.17945018]
[1744103538999,0.36244806,79231.0,79230.0,1.8e-07]
[1744103539246,0.012624,79213.0,79212.0,0.4144]
[1744103539451,0.012624,79213.0,79212.0,0.54065864]
[1744103539649,0.02113084,79213.0,79212.0,0.59569556]
[1744103539850,0.27361384,79213.0,79212.0,0.18129556]
[1744103540052,0.27361384,79213.0,79212.0,0.12625864]